bitfinex/quotes_ETHUSD_20260129
["timestamp","ask_amount","ask_price","bid_price","bid_amount"]
[1769698903741,0.87228257,2866.1,2863.5,0.87305744]
[1769698903890,9.91949421,2866.1,2863.5,0.87305744]
[1769698904088,10.28328937,2866.0,2863.5,0.87305744]
[1769698904987,11.15559685,2866.0,2863.6,0.10477787]
[1769698905183,11.15559685,2866.0,2863.5,0.87305744]
[1769698905720,10.28328937,2866.0,2863.8,0.10477787]
[1769698906017,3.48759577,2867.4,2864.7,0.10477787]
[1769698906320,0.001,2866.3,2865.0,0.10477787]
[1769698906534,8.94243377,2867.6,2865.4,0.10477787]
[1769698906709,1.85320818,2867.7,2865.5,0.10477787]
[1769698906911,0.731,2868.7,2865.4,0.10477787]
[1769698906912,9.81406057,2868.2,2865.4,0.10477787]
[1769698907210,9.81406057,2868.2,2865.8,0.10477787]
[1769698907409,0.87142921,2868.9,2866.4,0.10477787]
[1769698907726,8.94243377,2869.0,2867.0,0.10477787]
[1769698907902,9.81383028,2869.0,2866.8,0.10477787]
[1769698908106,0.98138303,2868.9,2866.8,0.10477787]
[1769698908303,0.98138303,2868.9,2866.1,0.731]
[1769698908304,9.9238168,2868.9,2866.1,0.731]
[1769698908535,0.98138303,2868.9,2866.7,0.10477787]
[1769698908737,0.001,2869.5,2867.4,0.10477787]
[1769698908905,0.10477787,2871.5,2868.7,0.10477787]
[1769698908906,8.94243377,2871.3,2868.7,0.10477787]
[1769698909240,0.87047353,2872.0,2869.6,0.10477787]
[1769698909539,0.87047353,2872.0,2869.2,0.731]
[1769698909540,0.43522469,2871.9,2869.2,0.731]
[1769698909726,0.43522469,2871.9,2869.5,0.10477787]
[1769698909914,0.43522469,2871.9,2869.3,0.10477787]
[1769698910245,9.48243633,2871.9,2868.8,0.10477787]
[1769698910402,9.37765846,2871.9,2869.2,0.10477787]
[1769698910603,9.37765846,2871.9,2868.9,0.10477787]
[1769698910604,9.96724697,2871.8,2868.9,0.10477787]
[1769698910940,8.94243377,2871.6,2868.0,0.10477787]
[1769698911142,8.94243377,2871.6,2868.4,0.10477787]
[1769698911341,8.94243377,2871.2,2868.7,3.48579285]
[1769698911644,8.94243377,2871.0,2868.2,3.48643384]
[1769698911961,8.94243377,2870.8,2868.3,0.34864338]
[1769698912268,8.94243377,2870.8,2867.8,3.48692851]
[1769698912414,8.94243377,2870.8,2867.7,0.10477787]
[1769698912415,8.94243377,2869.7,2866.0,0.10477787]
[1769698912610,9.04721164,2869.2,2866.1,0.87226544]
[1769698912843,9.04721164,2869.0,2866.1,0.87226544]
[1769698913041,9.8138479,2868.9,2866.1,0.87226544]
[1769698913545,8.94243377,2868.7,2865.3,0.10477787]
[1769698913744,8.94243377,2868.7,2865.0,0.10477787]
[1769698913745,9.04721164,2868.4,2865.4,4.32565169]
[1769698914048,9.04721164,2868.4,2866.0,0.87229331]
[1769698914232,0.90472116,2868.3,2866.0,0.87229331]
[1769698914426,0.90472116,2868.3,2865.9,0.87231778]
[1769698914631,9.84715493,2868.3,2865.7,0.87236748]
[1769698914820,9.84715493,2868.3,2865.5,3.48978919]
[1769698914821,8.94243377,2868.1,2866.0,0.87228374]
[1769698915026,0.87171798,2867.9,2865.8,3.48918353]
[1769698915349,0.87171798,2867.9,2865.7,0.8723872]
[1769698915544,0.1024,2867.8,2865.4,0.87245616]
[1769698915748,0.87171798,2867.9,2865.6,0.8724092]
[1769698915908,4.3811153,2868.0,2865.8,0.10477787]
[1769698915909,0.89424338,2868.0,2865.8,0.10477787]
[1769698916110,3.59087267,2868.6,2866.2,0.10477787]
[1769698916342,0.87153564,2868.5,2866.2,0.10477787]
[1769698916547,3.48614258,2868.9,2866.0,0.10477787]
[1769698916548,0.87141413,2869.0,2867.0,0.10477787]
[1769698916711,0.87141413,2869.0,2866.6,0.10477787]
[1769698916915,0.87141413,2869.0,2866.1,0.731]
[1769698916916,9.84425494,2869.0,2866.1,0.731]
[1769698917135,9.84425494,2869.0,2866.4,0.10477787]
[1769698917415,0.10477787,2868.7,2866.2,0.87223501]
[1769698917616,1.02301753,2868.7,2866.2,0.97701288]
[1769698918153,1.02301753,2868.7,2866.2,0.87223501]
[1769698918329,1.02301753,2868.7,2866.2,0.87423501]
[1769698918644,1.02301753,2868.7,2866.2,0.97901288]
[1769698918846,9.99585834,2868.7,2866.2,0.87423501]
[1769698919014,0.87156602,2868.4,2866.2,0.002]
[1769698919625,9.07761868,2867.5,2866.0,0.002]
[1769698919826,0.90776187,2867.4,2866.0,0.002]
[1769698920034,9.07524081,2868.2,2866.0,0.002]
[1769698920252,8.97284081,2868.2,2866.0,0.002]
[1769698920460,0.91823966,2868.7,2866.6,0.10477787]
[1769698920615,7.71109762,2870.1,2867.2,0.10477787]
[1769698920616,9.84398165,2869.8,2867.2,0.10477787]
[1769698920816,0.10477787,2869.3,2866.4,0.10477787]
[1769698921034,0.10477787,2869.3,2865.4,5.35013777]
[1769698921035,9.07761868,2868.4,2866.0,0.002]
[1769698921250,0.10477787,2868.2,2866.0,0.002]
[1769698921412,0.87138375,2869.0,2866.5,0.10477787]
[1769698921615,0.87138375,2869.0,2866.3,0.10477787]
[1769698921616,0.8713609,2869.1,2866.7,0.10477787]
[1769698921835,0.8713609,2869.1,2866.9,0.10477787]
[1769698922033,0.87112139,2869.9,2867.6,0.10477787]
[1769698922242,0.87112139,2869.9,2867.4,0.10477787]
[1769698922533,0.87104978,2870.1,2867.7,0.10477787]
[1769698922736,0.87088518,2870.7,2868.1,0.10477787]
[1769698922940,1.60185824,2870.8,2868.2,0.10477787]
[1769698923150,0.87108013,2870.0,2867.0,0.10477787]
[1769698923347,0.10477787,2869.9,2867.2,0.731]
[1769698923554,0.10477787,2869.9,2867.3,0.10477787]
[1769698923847,0.10477787,2869.9,2867.2,0.731]
[1769698924054,0.10477787,2869.4,2866.7,1.70786075]
[1769698924350,0.10477787,2869.3,2866.7,0.87208288]
[1769698924552,0.10477787,2869.5,2866.8,0.10477787]
[1769698924753,0.10477787,2869.5,2867.2,0.10477787]
[1769698924950,0.10477787,2869.5,2866.7,0.87208288]
[1769698924951,9.07761868,2869.9,2867.3,0.10477787]
[1769698925155,0.87132301,2869.2,2866.3,0.87220458]
[1769698925455,0.10477787,2869.1,2866.5,0.10477787]
[1769698925757,0.87132301,2869.2,2866.9,0.10477787]
[1769698925939,0.87132301,2869.2,2866.9,0.731]
[1769698926142,0.87132301,2869.2,2866.4,3.48833153]
[1769698926143,0.54043938,2869.1,2866.4,3.48833153]
[1769698926444,0.10477787,2868.7,2866.4,3.48833153]
[1769698926837,0.10477787,2868.7,2866.4,4.21933153]
[1769698927150,0.87138375,2869.0,2866.6,0.8721133]
[1769698927322,0.48973581,2868.9,2866.6,0.8721133]
[1769698927522,0.10477787,2868.1,2865.4,3.48983011]
[1769698927749,0.10477787,2867.5,2865.8,0.87234971]
[1769698927949,0.10477787,2867.5,2866.0,0.87429343]
[1769698928156,0.10477787,2867.5,2866.1,0.87225673]
[1769698928322,0.10477787,2867.6,2866.0,0.002]
[1769698928529,0.10477787,2867.4,2866.0,0.002]
[1769698928723,0.10477787,2867.0,2866.0,0.002]
[1769698928925,0.10477787,2867.0,2864.8,0.002]
[1769698929157,0.87202204,2866.9,2864.8,0.002]
[1769698929330,0.44648881,2866.8,2864.8,0.002]
[1769698929531,0.10477787,2866.2,2864.8,0.002]
[1769698929731,0.10477787,2865.2,2863.6,0.003]
[1769698930036,0.10477787,2864.8,2863.6,0.003]
[1769698930444,0.10477787,2865.0,2863.6,0.003]
[1769698930649,0.731,2865.4,2863.8,0.87296233]
[1769698930858,0.98086187,2865.3,2863.6,0.87602444]
[1769698931065,0.10477787,2864.8,2863.6,0.003]
[1769698931223,0.10477787,2864.6,2863.3,0.002]
[1769698931438,9.07761868,2864.4,2861.9,0.87354554]
[1769698931638,0.10477787,2864.2,2861.9,0.87354554]
[1769698932355,8.97284081,2864.4,2862.0,0.10477787]
[1769698932584,0.97745786,2864.8,2862.2,0.10477787]
[1769698932794,0.97745786,2864.8,2861.9,0.87354554]
[1769698932795,8.97284081,2864.3,2861.9,0.87354554]
[1769698932945,0.10477787,2863.7,2861.7,0.87359135]
[1769698933151,0.87314892,2863.2,2860.7,3.49564251]
[1769698933389,0.10477787,2863.1,2860.7,3.49564251]
[1769698933682,0.10477787,2863.1,2860.5,0.87397308]
[1769698934377,9.07761868,2862.6,2860.4,0.87399841]
[1769698934542,0.87314892,2863.2,2860.4,0.87399841]
[1769698934543,0.10477787,2862.2,2860.4,0.87399841]
[1769698934743,9.84598973,2863.2,2860.8,0.10477787]
[1769698934946,9.84598973,2863.2,2860.7,0.10477787]
[1769698935193,9.84598973,2863.2,2860.6,0.87394252]
[1769698935476,1.33385854,2863.1,2860.6,0.87394252]
[1769698935683,3.59737356,2863.3,2861.0,0.10477787]
[1769698935684,0.87312329,2863.3,2861.0,0.10477787]
[1769698935849,9.07524081,2863.2,2860.6,0.87394252]
[1769698936051,0.10477787,2863.1,2860.6,0.87394252]
[1769698936351,0.10477787,2863.1,2860.5,0.87396099]
[1769698936352,0.10477787,2862.2,2860.5,0.87396099]
[1769698936575,0.10477787,2862.2,2860.5,0.87397278]
[1769698936909,0.10477787,2862.0,2860.5,0.87397209]
[1769698937214,0.8734845,2862.1,2859.8,0.874187]
[1769698937373,0.44722004,2862.0,2859.8,0.874187]
[1769698937572,0.55199791,2862.0,2859.8,0.874187]
[1769698937970,0.10477787,2861.6,2859.6,0.8742192]
[1769698938277,0.10477787,2861.4,2859.7,0.8742175]
[1769698938479,1.02301753,2861.4,2859.7,0.8742175]
[1769698938717,0.91823966,2861.4,2859.7,0.8742175]
[1769698939006,0.55199791,2862.0,2859.7,0.8742175]
[1769698939215,0.87366765,2861.5,2859.2,0.87437045]
[1769698939414,0.10477787,2861.4,2859.2,0.87437045]
[1769698939595,0.10477787,2861.0,2859.2,0.87437045]
[1769698940425,12.57194014,2861.8,2859.2,0.87437045]
[1769698940715,0.10477787,2861.2,2859.2,0.87437045]
[1769698940872,0.10477787,2861.4,2859.2,0.87437045]
[1769698941277,0.10477787,2861.0,2859.2,0.87437045]
[1769698941576,0.10477787,2860.8,2859.2,0.87437045]
[1769698941771,0.10477787,2860.8,2859.1,1.124382]
[1769698941988,0.10477787,2860.5,2859.1,1.124382]
[1769698942290,0.10477787,2860.8,2859.1,1.124382]
[1769698942506,0.10477787,2860.8,2859.1,0.25]
[1769698942507,0.10477787,2860.3,2859.1,0.25]
[1769698942812,0.10477787,2860.6,2859.1,0.87439826]
[1769698943013,0.10477787,2860.8,2859.1,0.87439826]
[1769698943014,0.10477787,2860.9,2859.1,0.87439826]
[1769698943398,0.10477787,2860.7,2858.3,3.49850698]
[1769698943592,0.10477787,2860.3,2858.3,3.49850698]
[1769698943793,0.10477787,2860.1,2858.3,3.49850698]
[1769698943990,0.10477787,2859.9,2858.3,3.49850698]
[1769698944323,0.10477787,2859.7,2858.3,0.87464576]
[1769698944489,0.10477787,2859.5,2858.3,0.87464576]
[1769698944826,0.10477787,2859.5,2857.9,0.002]
[1769698944827,0.10477787,2859.7,2858.2,0.87465696]
[1769698945121,0.10477787,2859.3,2857.9,0.002]
[1769698945331,0.87412587,2860.0,2857.9,0.002]
[1769698945477,0.10477787,2859.9,2857.9,0.002]
[1769698945988,0.45801851,2859.9,2857.9,0.002]
[1769698946196,0.10477787,2860.9,2858.4,0.10477787]
[1769698946382,0.10477787,2861.4,2858.8,0.10477787]
[1769698946600,0.10477787,2860.6,2858.0,0.10477787]
[1769698946906,0.10477787,2860.6,2858.1,0.10477787]
[1769698947108,0.10477787,2861.2,2858.4,0.10477787]
[1769698947331,0.10477787,2861.4,2859.0,0.10477787]
[1769698947637,0.55199791,2862.0,2859.4,0.10477787]
[1769698947638,0.97830639,2862.0,2859.4,0.10477787]
[1769698947798,0.10477787,2861.3,2859.0,0.732]
[1769698948136,0.10477787,2861.5,2859.1,0.10477787]
[1769698948446,0.10477787,2861.5,2859.0,0.732]
[1769698948606,0.97830639,2862.0,2859.4,0.10477787]
[1769698948808,0.10477787,2861.8,2858.9,0.10477787]
[1769698949114,0.10477787,2861.6,2859.0,0.83677787]
[1769698949309,0.4472337,2861.9,2859.0,0.83677787]
[1769698949310,0.4472337,2861.9,2859.6,0.10477787]
[1769698949513,0.10477787,2862.8,2859.5,0.87427872]
[1769698949514,0.10477787,2859.9,2859.5,0.87427872]
[1769698949713,0.10477787,2858.9,2857.9,0.002]
[1769698949914,0.05475864,2858.7,2858.0,3.49885704]
[1769698950112,0.10477787,2858.9,2857.9,0.87676305]
[1769698950558,0.10477787,2859.3,2857.3,0.99242424]
[1769698950559,0.10477787,2858.8,2857.4,0.87490309]
[1769698950847,9.33284141,2860.1,2857.8,0.87479238]
[1769698951017,0.10477787,2859.2,2857.9,0.87475941]
[1769698951219,0.10477787,2860.5,2857.9,0.87475941]
[1769698951432,0.87405477,2860.3,2858.0,0.83677787]
[1769698951636,0.87388143,2860.8,2858.6,0.10477787]
[1769698951854,12.82836713,2860.9,2858.6,0.10477787]
[1769698951855,0.8737898,2861.1,2859.0,0.10477787]
[1769698952013,0.8737898,2861.1,2859.1,0.732]
[1769698952215,0.10477787,2860.6,2857.8,3.49909028]
[1769698952414,0.10477787,2860.6,2858.0,0.10477787]
[1769698952614,0.10477787,2861.0,2858.4,0.10477787]
[1769698952823,0.10477787,2860.8,2857.8,3.60386815]
[1769698953010,0.10477787,2860.8,2858.4,0.10477787]
[1769698953011,8.8278649,2860.8,2858.4,0.10477787]
[1769698953217,0.8737898,2861.1,2858.9,0.10477787]
[1769698953416,0.8737898,2861.1,2858.0,0.10477787]
[1769698953417,8.72308703,2861.3,2858.5,14.5]
[1769698953618,0.10477787,2861.2,2859.1,0.87437832]
[1769698953921,0.87363712,2861.6,2859.2,0.10477787]
[1769698954163,0.8734845,2862.1,2859.4,0.10477787]
[1769698954314,0.10477787,2861.3,2859.1,1.60637832]
[1769698954512,0.10477787,2860.9,2859.0,0.732]
[1769698954763,0.10477787,2860.7,2857.5,13.11185276]
[1769698954925,0.10477787,2860.1,2858.2,0.87466222]
[1769698955259,0.10477787,2859.7,2858.2,0.87467141]
[1769698955436,0.87424814,2859.6,2858.2,0.87467636]
[1769698955765,0.87412587,2860.0,2858.2,0.87467636]
[1769698955916,0.87412587,2860.0,2857.8,3.49915038]
[1769698955917,0.10477787,2859.6,2857.8,0.87479445]
[1769698956117,0.87412587,2860.0,2858.1,0.87469184]
[1769698956532,0.87412587,2860.0,2858.2,0.732]
[1769698956738,0.54184081,2859.9,2858.1,0.87469184]
[1769698957138,0.10477787,2859.7,2858.1,0.87469184]
[1769698957346,0.874187,2859.8,2857.4,3.49959097]
[1769698957520,0.43706294,2859.9,2858.2,0.732]
[1769698957719,0.97877061,2860.5,2858.2,0.732]
[1769698957948,0.97877061,2860.5,2857.9,0.10477787]
[1769698957949,0.87399274,2860.5,2858.3,0.733]
[1769698958113,0.10477787,2860.3,2857.5,0.10477787]
[1769698958318,0.10477787,2860.4,2857.9,0.10477787]
[1769698958547,0.10477787,2860.4,2858.0,0.733]
[1769698958743,0.10477787,2860.4,2858.1,0.10477787]
[1769698959156,9.28579713,2860.4,2857.5,0.10477787]
[1769698959452,0.87415643,2859.9,2858.2,0.87467636]
[1769698959750,0.87415643,2859.9,2858.1,4.23170547]
[1769698959751,0.87415643,2859.9,2858.1,0.8747027]
[1769698959952,0.87415643,2859.9,2858.1,1.6077027]
[1769698960263,0.87415643,2859.9,2858.1,0.8747027]
[1769698960562,0.8737898,2861.1,2858.9,0.10477787]
[1769698960937,0.8737898,2861.1,2858.7,0.10477787]
[1769698961248,0.8737898,2861.1,2858.9,0.10477787]
[1769698961417,0.8737898,2861.1,2859.0,0.87443161]
[1769698961664,9.59687683,2861.1,2859.0,0.87443161]
[1769698961875,1.42445155,2861.0,2859.0,1.60743161]
[1769698962094,1.42445155,2861.0,2858.9,0.87443997]
[1769698962262,8.8278649,2860.4,2858.5,0.733]
[1769698962474,8.8278649,2860.4,2858.8,0.87448968]
[1769698962663,0.88278649,2860.3,2858.5,0.733]
[1769698962869,0.88278649,2860.3,2858.4,3.49841217]
[1769698962870,0.10477787,2860.7,2858.9,0.87445728]
[1769698963166,0.10477787,2860.7,2858.3,3.49846202]
[1769698963362,0.10477787,2860.7,2857.1,9.95073144]
[1769698963363,0.87412587,2860.0,2857.4,0.87492125]
[1769698963697,0.87412587,2860.0,2857.5,0.733]
[1769698963897,0.44754072,2859.9,2857.5,0.83777787]
[1769698964214,0.87400363,2860.4,2858.1,0.10477787]
[1769698964502,0.87400363,2860.4,2858.3,0.10477787]
[1769698964705,0.87400363,2860.4,2858.1,0.10477787]
[1769698965002,0.87400363,2860.4,2858.2,0.733]
[1769698965202,0.87400363,2860.4,2857.5,0.10477787]
[1769698965203,0.43700182,2860.3,2857.5,0.10477787]
[1769698965492,0.87406475,2860.2,2858.4,0.87461516]
[1769698965701,0.87406475,2860.2,2858.5,0.733]
[1769698966199,0.87406475,2860.2,2858.4,0.87461516]
[1769698966404,0.87406475,2860.2,2858.6,0.733]
[1769698966660,0.10477787,2859.9,2857.3,0.99242424]
[1769698966940,0.10477787,2859.9,2858.0,0.8747217]
[1769698966941,0.10477787,2859.7,2858.0,0.8747217]
[1769698967098,0.10477787,2859.5,2857.9,0.87474606]
[1769698967299,0.10477787,2859.5,2857.7,0.733]
[1769698967500,0.10477787,2859.9,2857.7,0.733]
[1769698967501,0.87406475,2860.2,2857.8,0.97957666]
[1769698967720,0.480729,2860.1,2858.0,0.10477787]
[1769698967927,0.001,2860.3,2858.2,0.10477787]
[1769698968241,0.87503985,2860.3,2858.4,0.10477787]
[1769698968397,0.87503985,2860.3,2858.3,0.733]
[1769698968601,0.43711766,2860.2,2858.3,0.733]
[1769698968796,0.43711766,2860.2,2858.4,0.733]
[1769698969039,0.001,2860.3,2858.5,0.83777787]
[1769698969340,0.001,2860.3,2858.7,0.10477787]
[1769698969555,0.001,2860.3,2858.8,0.87449279]
[1769698969766,0.001,2861.4,2859.4,0.10477787]
[1769698970037,0.001,2861.4,2860.0,0.10477787]
[1769698970195,0.10477787,2863.0,2860.2,0.10477787]
[1769698970395,0.87305744,2863.5,2860.6,0.10477787]
[1769698970600,1.31931521,2863.4,2861.5,0.10477787]
[1769698970816,1.31931521,2863.4,2860.4,9.71716114]
[1769698970817,0.10477787,2863.4,2860.4,9.71716114]
[1769698971097,0.87305744,2863.5,2861.0,0.10477787]
[1769698971296,0.87305744,2863.5,2861.3,0.10477787]
[1769698971518,0.87305744,2863.5,2861.5,0.87366765]
[1769698971519,0.87311842,2863.3,2861.5,0.87366765]
[1769698972234,0.87311842,2863.3,2860.8,3.4954681]
[1769698972439,0.87311842,2863.3,2860.4,0.10477787]
[1769698972440,0.87311842,2863.3,2861.4,0.87369603]
[1769698972873,0.87311842,2863.3,2861.4,1.60667923]
[1769698973153,3.92900243,2863.4,2861.4,1.60667923]
[1769698973154,1.30961789,2863.4,2861.4,1.60667923]
[1769698973429,0.87278313,2864.4,2861.5,0.83777787]
[1769698973630,0.1024,2864.3,2861.8,0.87357607]
[1769698973805,0.54926331,2864.3,2861.8,0.87357607]
[1769698974154,0.10477787,2863.8,2861.7,0.8735993]
[1769698974509,0.10477787,2863.6,2861.6,0.87363547]
[1769698974713,0.10477787,2863.4,2861.5,0.87366358]
[1769698974911,0.10477787,2863.4,2860.5,0.10477787]
[1769698975124,0.10477787,2863.4,2861.2,0.87374596]
[1769698975431,0.10477787,2863.4,2860.4,0.003]
[1769698975432,9.15968791,2862.6,2860.4,0.003]
[1769698975636,0.10477787,2861.8,2860.4,0.003]
[1769698976736,0.10477787,2861.6,2860.4,0.003]
[1769698976938,0.10477787,2861.8,2860.4,0.003]
[1769698977141,0.10477787,2861.5,2860.4,0.003]
[1769698977348,0.10477787,2861.7,2860.4,0.003]
[1769698977531,0.10477787,2861.7,2858.6,3.60289744]
[1769698977532,0.10477787,2861.2,2858.7,0.732]
[1769698977704,0.10477787,2861.2,2858.3,0.87464576]
[1769698977705,0.87372872,2861.3,2858.8,0.10477787]
[1769698977905,0.44734215,2861.2,2858.9,0.732]
[1769698978124,0.10477787,2860.6,2858.3,0.87464576]
[1769698978335,0.10477787,2860.4,2858.3,0.87464576]
[1769698978540,0.10477787,2860.0,2858.3,0.87464576]
[1769698978723,0.10477787,2859.8,2858.2,0.87466034]
[1769698979035,0.10477787,2859.6,2858.2,0.87466034]
[1769698979235,0.10477787,2859.8,2858.2,0.87465795]
[1769698979639,0.87421757,2859.7,2857.7,3.4992755]
[1769698980010,0.87409531,2860.1,2857.7,4.2312755]
[1769698980212,0.10477787,2860.0,2857.8,0.732]
[1769698980418,0.10477787,2860.0,2857.8,0.83677787]
[1769698980618,0.10477787,2860.0,2857.7,3.4992755]
[1769698980822,0.10477787,2860.0,2857.8,0.732]
[1769698981029,0.10477787,2860.0,2857.7,3.4992755]
[1769698981228,0.10477787,2860.0,2857.6,0.8748294]
[1769698981429,0.10477787,2859.8,2857.6,0.8748294]
[1769698981631,0.87421757,2859.7,2857.6,0.8748294]
[1769698981835,0.10477787,2859.6,2857.5,0.87487004]
[1769698982125,0.10477787,2859.4,2857.5,0.87488062]
[1769698982474,0.10477787,2859.4,2857.3,0.99242424]
[1769698982475,0.10477787,2859.1,2857.3,0.99242424]
[1769698982759,0.10477787,2858.7,2857.3,0.99242424]
[1769698983121,3.4968703,2859.8,2857.5,0.87488459]
[1769698983427,9.5967967,2859.6,2857.5,0.87488713]
[1769698983747,0.87427872,2859.5,2857.4,3.60434042]
[1769698983960,0.87427872,2859.5,2857.4,3.49956255]
[1769698984117,0.43710879,2859.6,2857.8,0.10477787]
[1769698984455,0.87403419,2860.3,2857.9,0.83777787]
[1769698984642,0.87403419,2860.3,2857.9,0.733]
[1769698984825,0.87403419,2860.3,2858.2,0.10477787]
[1769698985020,0.1024,2861.1,2858.5,0.10477787]
[1769698985021,10.03347771,2861.1,2858.5,0.10477787]
[1769698985242,1.40807569,2861.0,2858.6,0.10477787]
[1769698985446,1.40807569,2861.0,2858.3,0.10477787]
[1769698985619,10.03347771,2861.1,2858.3,0.10477787]
[1769698985620,0.87380572,2861.1,2859.2,0.10477787]
[1769698985957,0.44734215,2861.2,2859.4,0.10477787]
[1769698986162,0.87374074,2861.3,2859.4,0.10477787]
[1769698986377,9.15968791,2861.9,2859.5,0.10477787]
[1769698986524,0.87339295,2862.4,2860.3,0.10477787]
[1769698986719,0.87320991,2863.0,2860.7,0.10477787]
[1769698986939,0.001,2863.1,2861.5,0.10477787]
[1769698987118,0.87284407,2864.2,2861.9,0.10477787]
[1769698987315,1.35239083,2864.1,2862.0,0.733]
[1769698987553,0.87290502,2864.0,2861.1,0.10477787]
[1769698987720,10.03259293,2864.0,2861.4,0.733]
[1769698987918,1.48766039,2863.9,2861.7,0.87359565]
[1769698988369,1.48766039,2863.9,2861.7,0.87357635]
[1769698988850,1.48766039,2863.9,2861.7,0.97835422]
[1769698989021,1.48766039,2863.9,2861.9,0.10477787]
[1769698989356,10.03234917,2864.8,2861.7,0.97835422]
[1769698989544,10.03234917,2864.8,2861.6,3.49442638]
[1769698989545,10.03247104,2864.4,2861.6,3.49442638]
[1769698990020,10.03247104,2864.4,2861.7,0.10477787]
[1769698990226,10.03247104,2864.4,2862.2,0.10477787]
[1769698990425,1.35236036,2864.3,2861.6,3.49442638]
[1769698990745,1.35236036,2864.3,2861.6,0.87363712]
[1769698990746,10.51204827,2864.3,2861.6,0.87363712]
[1769698991158,1.35236036,2864.3,2862.0,0.10477787]
[1769698991334,9.26446578,2865.1,2862.0,0.10477787]
[1769698991335,0.87260034,2865.0,2862.9,0.10477787]
[1769698991537,0.87247853,2865.4,2863.4,0.87308793]
[1769698991858,0.87247853,2865.4,2862.9,0.83677787]
[1769698991859,10.03216644,2865.4,2862.3,0.732]
[1769698992158,10.03216644,2865.4,2863.3,0.87311433]
[1769698992361,1.42550806,2865.3,2863.3,0.87311433]
[1769698993023,1.42550806,2865.3,2863.3,0.8731045]
[1769698993654,9.15968791,2866.3,2864.0,0.87290502]
[1769698993655,3.48912395,2866.1,2864.0,0.87290502]
[1769698994159,3.48912395,2866.1,2863.2,3.49247468]
[1769698994160,12.64881186,2866.1,2862.7,3.49313011]
[1769698994345,9.26208791,2865.5,2862.4,0.10477787]
[1769698994656,0.10477787,2865.0,2862.8,3.49305271]
[1769698994857,1.04170224,2865.0,2862.9,0.34930527]
[1769698995063,10.20139015,2865.0,2861.6,12.48759342]
[1769698995248,10.20139015,2865.0,2862.7,0.87329829]
[1769698995432,10.20139015,2865.0,2862.6,0.87331631]
[1769698995626,9.26446578,2864.7,2861.9,0.87554554]
[1769698995858,10.09637449,2864.6,2862.0,0.10477787]
[1769698996048,0.732,2864.5,2861.9,0.87554554]
[1769698996252,0.732,2864.5,2862.0,0.10477787]
[1769698996564,9.26208791,2864.4,2861.9,0.002]
[1769698996730,9.15968791,2864.2,2861.9,0.002]
[1769698996930,9.15968791,2863.6,2861.9,0.002]
[1769698997242,0.732,2863.5,2861.9,0.002]
[1769698997442,9.15968791,2863.6,2861.9,0.002]
[1769698997647,0.87305744,2863.5,2861.9,0.002]
[1769698998463,0.87305744,2863.5,2858.0,8.99109903]
[1769698998464,9.15968791,2863.2,2858.0,8.99109903]
[1769698998669,0.10477787,2860.6,2858.1,4.87470697]
[1769698998958,0.10477787,2860.0,2858.1,0.87470697]
[1769698999173,0.10477787,2861.6,2858.6,0.10477787]
[1769698999382,0.10477787,2861.0,2858.2,0.10477787]
[1769698999597,0.10477787,2860.8,2858.2,0.10477787]
[1769698999953,0.10477787,2861.0,2858.4,0.10477787]
[1769699000154,0.97854988,2861.2,2858.6,0.10477787]
[1769699000405,0.9785379,2861.2,2858.6,0.10477787]
[1769699000609,0.10477787,2861.8,2859.1,0.10477787]
[1769699000751,0.10477787,2861.6,2859.1,0.10477787]
[1769699001286,0.10477787,2862.0,2859.5,0.10477787]
[1769699001490,0.10477787,2862.0,2859.6,0.732]
[1769699002010,0.10477787,2862.0,2857.7,0.732]
[1769699002011,0.10477787,2859.9,2857.7,0.732]
[1769699002296,0.10477787,2859.5,2857.4,0.87492125]
[1769699002451,0.10477787,2859.1,2857.4,0.87492125]
[1769699002653,0.10477787,2858.9,2857.4,0.87492125]
[1769699002889,0.10477787,2858.6,2857.4,0.87492125]
[1769699003189,0.10477787,2858.4,2857.4,0.87492125]
[1769699003366,0.10477787,2858.6,2857.4,0.87492125]
[1769699003755,0.10477787,2859.0,2857.4,0.87492125]
[1769699004057,0.10477787,2858.8,2857.4,0.87492125]
[1769699004480,0.10477787,2859.9,2857.6,0.002]
[1769699004786,0.10477787,2859.5,2857.6,0.002]
[1769699004975,0.10477787,2859.1,2857.6,0.002]
[1769699005484,0.10477787,2859.2,2857.6,0.002]
[1769699006257,0.87435112,2859.3,2857.6,0.002]
[1769699006453,0.87435112,2859.3,2857.3,0.99242424]
[1769699006454,0.10477787,2858.7,2857.3,0.99242424]
[1769699006655,0.10477787,2858.7,2856.2,0.002]
[1769699006656,0.10477787,2857.1,2856.2,0.002]
[1769699006869,0.10477787,2857.3,2856.2,0.002]
[1769699007117,0.10477787,2856.7,2856.2,0.002]
[1769699007397,0.10477787,2856.9,2856.2,0.002]
[1769699007599,0.10477787,2857.4,2856.2,0.002]
[1769699007767,0.10477787,2857.6,2856.5,0.87519339]
[1769699007967,0.10477787,2857.6,2856.2,0.002]
[1769699008196,0.10477787,2857.1,2856.2,0.002]
[1769699008364,0.10477787,2856.7,2856.2,0.002]
[1769699008568,0.10477787,2857.1,2856.2,0.002]
[1769699008903,0.10477787,2857.3,2856.2,0.002]
[1769699009086,0.10477787,2857.5,2856.2,0.002]
[1769699009292,0.10477787,2857.9,2856.2,0.002]
[1769699009596,0.10477787,2857.7,2856.2,0.002]
[1769699009799,0.10477787,2857.9,2856.2,0.002]
[1769699010109,0.10477787,2857.4,2856.2,0.002]
[1769699010600,0.87472343,2858.1,2856.2,0.002]
[1769699010801,0.10477787,2857.7,2856.2,0.002]
[1769699011296,0.10477787,2857.8,2856.2,0.002]
[1769699011509,0.10477787,2857.4,2856.2,0.002]
[1769699011673,0.10477787,2857.2,2856.2,0.002]
[1769699011878,0.10477787,2857.4,2856.2,0.002]
[1769699012310,0.10477787,2857.6,2856.2,0.002]
[1769699012787,0.10477787,2856.6,2856.2,0.002]
[1769699012976,0.10477787,2856.5,2856.2,0.002]
[1769699013178,0.10477787,2856.7,2856.2,0.002]
[1769699013380,0.10477787,2857.1,2856.2,0.002]
[1769699013676,0.10477787,2857.5,2856.2,0.002]
[1769699013902,0.10477787,2857.1,2856.2,0.002]
[1769699014100,0.10477787,2856.6,2854.9,3.50238161]
[1769699014292,0.10477787,2856.4,2854.6,3.50274965]
[1769699014699,0.10477787,2857.2,2854.6,4.34052752]
[1769699014909,0.10477787,2857.2,2854.6,4.23574965]
[1769699014910,0.10477787,2857.0,2854.6,4.23574965]
[1769699015085,0.10477787,2856.6,2854.6,3.50274965]
[1769699015416,0.10477787,2856.7,2854.6,3.50274965]
[1769699016110,0.97993055,2856.7,2854.6,3.50274965]
[1769699016473,9.45607881,2857.8,2854.9,0.002]
[1769699016474,0.10477787,2857.2,2854.9,0.002]